fUSD/lending_fUSD_20251017
["ID","MTS","AMOUNT","RATE_DAILY","PERIOD"]
[391633310,1760711437922,-24240.05336425,0.00015,3]
[391633311,1760711437934,-146471.12158283,0.00015,3]
[391633312,1760711437946,-12166.5537694,0.00015,3]
[391633313,1760711437957,-447.20556288,0.00015,3]
[391633314,1760711437999,-2688.55100945,0.00015,3]
[391633315,1760711438010,-6346.80758099,0.00015,3]
[391633316,1760711438097,-57732.59117386,0.00015,3]
[391633317,1760711438113,-2970.00001,0.00015,3]
[391633318,1760711438125,-5641.81027909,0.00015,3]
[391633319,1760711438137,-974.0010031,0.00015,3]
[391633373,1760711439891,-40882.34831143,0.00015,3]
[391633374,1760711440126,-1055.6492,0.00015,3]
[391633375,1760711440139,-6039.76715272,0.00015,3]
[391633376,1760711440149,-779563.50459925,0.00015,2]
[391633377,1760711440159,-400881.12762422,0.00015,2]
[391633379,1760711442977,-75044.4829279,0.00015,2]
[391633380,1760711442991,-3404.013419,0.00015,2]
[391633382,1760711445968,-605.748278,0.00015,2]
[391633383,1760711446067,-187300.09289155,0.00015,2]
[391633384,1760711446079,-512138.94623701,0.00015,2]
[391633385,1760711446104,-353.01599996,0.00015,2]
[391633386,1760711528084,500.0,0.00015,30]
[391633387,1760711528584,500.0,0.00015274,30]
[391633388,1760711529090,500.0,0.00015548,30]
[391633389,1760711529980,500.0,0.00015822,30]
[391633390,1760711541310,500.0,0.00015,30]
[391633391,1760711541803,500.0,0.00015274,30]
[391633392,1760711542380,500.0,0.00015548,30]
[391633393,1760711553648,500.0,0.00015,30]
[391633398,1760711736781,190.0,8.126e-05,2]
[391633399,1760711737023,189.0,8.126e-05,2]
[391633409,1760712122437,337.0,0.000272,120]
[391633410,1760712228902,1000.0,0.0002739,120]
[391633411,1760712237838,1000.0,0.0002739,120]
[391633412,1760712256879,438.07,0.0002739,120]
[391633414,1760712312876,250.0,0.00013437,7]
[391633417,1760712512692,602.10366148,0.00027397,120]
[391633418,1760712554423,180.0,0.00027397,120]
[391633419,1760712592590,161.845,0.00027397,120]
[391633428,1760712632119,-678.14,0.00013418,2]
[391633430,1760712632129,-230.60756444,0.00013552,2]
[391633431,1760712632139,-67.06179541,0.00013558,3]
[391633438,1760712632238,-432.93820459,0.00013558,3]
[391633439,1760712632248,-250.0,0.00013558,2]
[391633440,1760712632258,-500.0,0.00013651,3]
[391633441,1760712632268,-500.0,0.00013651,3]
[391633442,1760712632278,-500.0,0.00013651,3]
[391633443,1760712632287,-396.44,0.00013699,2]
[391633444,1760712632296,-1200.0,0.00013863,2]
[391633445,1760712632306,-694.0,0.00013864,2]
[391633446,1760712632320,-300.0,0.00013864,2]
[391633447,1760712632330,-209.0,0.00013864,2]
[391633448,1760712632339,-300.0,0.00013864,2]
[391633449,1760712632349,-300.0,0.00013864,2]
[391633450,1760712632359,-230.60756443,0.00013997,2]
[391633451,1760712632368,-617.4766,0.00014088,2]
[391633452,1760712632378,-4062.53763098,0.00014088,2]
[391633453,1760712632389,-1093.30376902,0.00014088,2]
[391633454,1760712632399,-150.0,0.00014172,2]
[391633455,1760712632408,-165.31390391,0.00014173,2]
[391633456,1760712632418,-500.0,0.00014173,2]
[391633457,1760712632427,-500.45473872,0.00014173,2]
[391633458,1760712632437,-214.01852963,0.00014173,2]
[391633459,1760712632446,-500.0,0.00014173,2]
[391633460,1760712632455,-501.74098893,0.00014173,2]
[391633461,1760712632464,-500.0,0.00014173,2]
[391633462,1760712632474,-174.25708113,0.00014173,2]
[391633464,1760712632483,-179.4243063,0.00014173,2]
[391633466,1760712632494,-320.5756937,0.00014173,2]
[391633468,1760712632503,-500.65389565,0.00014173,2]
[391633470,1760712632513,-500.0,0.00014173,2]
[391633472,1760712632522,-500.0,0.00014173,2]
[391633474,1760712632531,-500.0,0.00014173,2]
[391633476,1760712632540,-500.0,0.00014173,2]
[391633478,1760712632549,-500.0,0.00014173,2]
[391633479,1760712632561,-500.0,0.00014173,2]
[391633481,1760712632571,-500.0,0.00014173,2]
[391633484,1760712632581,-500.0,0.00014173,2]
[391633485,1760712632590,-503.6743994,0.00014173,2]
[391633487,1760712632600,-500.0,0.00014173,2]
[391633488,1760712632614,-503.51592685,0.00014173,2]
[391633489,1760712632623,-500.0,0.00014173,2]
[391633490,1760712632633,-159.95108071,0.00014173,2]
[391633491,1760712632642,-500.0,0.00014173,2]
[391633492,1760712632653,-500.0,0.00014173,2]
[391633493,1760712632662,-151.0,0.0001418,2]
[391633494,1760712632672,-151.0,0.0001418,2]
[391633495,1760712632682,-200.0,0.0001418,2]
[391633496,1760712632692,-151.0,0.0001418,2]
[391633497,1760712632701,-151.0,0.0001418,2]
[391633498,1760712632710,-151.0,0.0001418,2]
[391633499,1760712632719,-151.0,0.0001418,2]
[391633500,1760712632729,-151.0,0.0001418,2]
[391633501,1760712632738,-151.0,0.0001418,2]
[391633502,1760712632747,-151.0,0.0001418,2]
[391633503,1760712632758,-151.0,0.0001418,2]
[391633504,1760712632767,-151.0,0.0001418,2]
[391633505,1760712632777,-151.0,0.0001418,2]
[391633506,1760712632786,-151.0,0.0001418,2]
[391633507,1760712632795,-203.27553451,0.0001418,2]
[391633508,1760712632804,-10577.58917418,0.00014188,2]
[391633509,1760712633298,-47177.64122744,0.00014188,2]
[391633510,1760712633328,-1128.37054797,0.00014188,2]
[391633511,1760712633341,-630.31,0.00014188,2]
[391633512,1760712633352,-2888.33839999,0.00014188,2]
[391633513,1760712633364,-11428.9999999,0.00014188,2]
[391633516,1760712637990,-669.60084203,0.00014188,2]
[391633517,1760712638001,-16778.80798557,0.00014188,2]
[391633518,1760712638124,-125596.92182292,0.00014188,2]
[391633519,1760712638134,-3735.39126525,0.00014341,2]
[391633520,1760712638144,-170.54668019,0.00014436,2]
[391633521,1760712638154,-230.60756443,0.00014441,2]
[391633522,1760712638166,-200.0,0.00014541,2]
[391633523,1760712638175,-829.9874415,0.00014635,2]
[391633524,1760712638185,-500.0,0.00014721,2]
[391633525,1760712638195,-500.0,0.00014721,2]
[391633526,1760712638204,-500.0,0.00014721,2]
[391633527,1760712638214,-500.0,0.00014721,2]
[391633528,1760712638223,-1000.0,0.00014721,2]
[391633529,1760712638233,-500.0,0.00014721,2]
[391633530,1760712638243,-383.42224889,0.0001476,2]
[391633531,1760712638252,-195.0,0.0001476,2]
[391633532,1760712638262,-300.0,0.0001476,2]
[391633533,1760712638272,-300.0,0.0001476,2]
[391633534,1760712638282,-300.0,0.0001476,2]
[391633535,1760712638292,-195.0,0.0001476,2]
[391633536,1760712638301,-2500.0,0.0001476,2]
[391633537,1760712638311,-2500.0,0.0001476,2]
[391633538,1760712638322,-500.0,0.0001476,3]
[391633539,1760712638331,-250.0,0.0001476,2]
[391633540,1760712638340,-2500.0,0.0001476,2]
[391633541,1760712638350,-1277.64018233,0.0001476,2]
[391633542,1760712638359,-195.0,0.0001476,2]
[391633544,1760712638369,-195.0,0.0001476,2]
[391633546,1760712638379,-300.0,0.0001476,2]
[391633548,1760712638388,-250.0,0.0001476,2]
[391633549,1760712638398,-2500.0,0.0001476,2]
[391633550,1760712638407,-300.0,0.0001476,2]
[391633552,1760712638417,-625.0,0.000148,2]
[391633554,1760712638427,-556.02174,0.0001485,2]
[391633556,1760712638436,-1506.9626,0.000149,2]
[391633557,1760712638445,-4456.45756722,0.000149,2]
[391633559,1760712638459,-202.65613156,0.000149,2]
[391633561,1760712638468,-166.8451992,0.000149,2]
[391633563,1760712638478,-305.36074,0.000149,2]
[391633565,1760712638488,-283.97550568,0.000149,2]
[391633567,1760712638497,-500.81040045,0.00014973,2]
[391633569,1760712638507,-500.0,0.00014973,2]
[391633570,1760712638517,-501.37940019,0.00014973,2]
[391633571,1760712638527,-501.2555985,0.00014973,2]
[391633572,1760712638536,-500.0,0.00014973,2]
[391633573,1760712638546,-500.0,0.00014973,2]
[391633574,1760712638556,-500.0,0.00014973,2]
[391633575,1760712638568,-160.53088859,0.00014982,2]
[391633576,1760712638578,-500.0,0.00014985,2]
[391633577,1760712638587,-151.0,0.00014997,2]
[391633578,1760712638597,-500.0,0.00014999,2]
[391633579,1760712638608,-500.0,0.00014999,2]
[391633580,1760712638621,-500.0,0.00014999,2]
[391633581,1760712638631,-500.0,0.00014999,2]
[391633582,1760712638641,-500.0,0.00014999,2]
[391633583,1760712638652,-500.0,0.00014999,2]
[391633584,1760712638661,-500.0,0.00014999,2]
[391633585,1760712638671,-500.0,0.00014999,2]
[391633586,1760712638681,-500.0,0.00014999,2]
[391633587,1760712638692,-500.0,0.00014999,2]
[391633588,1760712638702,-576.14348289,0.00014999,2]
[391633589,1760712638711,-500.0,0.00014999,2]
[391633590,1760712638721,-500.0,0.00014999,2]
[391633591,1760712638731,-500.0,0.00014999,2]
[391633592,1760712638741,-500.0,0.00014999,2]
[391633593,1760712638750,-500.0,0.00014999,2]
[391633594,1760712638760,-500.0,0.00014999,2]
[391633595,1760712638770,-500.0,0.00014999,2]
[391633596,1760712638779,-500.0,0.00014999,2]
[391633597,1760712638789,-500.0,0.00014999,2]
[391633598,1760712638799,-500.0,0.00014999,2]
[391633599,1760712638808,-500.0,0.00014999,2]
[391633600,1760712638820,-500.0,0.00014999,2]
[391633601,1760712638830,-500.0,0.00014999,2]
[391633602,1760712638840,-500.0,0.00014999,2]
[391633603,1760712638849,-500.0,0.00014999,2]
[391633604,1760712638859,-500.0,0.00014999,2]
[391633605,1760712638869,-252.75579565,0.00014999,2]
[391633606,1760712638879,-500.0,0.00014999,2]
[391633607,1760712638889,-500.0,0.00014999,2]
[391633608,1760712638898,-500.0,0.00014999,2]
[391633609,1760712638908,-500.0,0.00014999,2]
[391633610,1760712638920,-500.0,0.00014999,2]
[391633611,1760712638930,-500.0,0.00014999,2]
[391633612,1760712638939,-500.0,0.00014999,2]
[391633613,1760712638948,-500.0,0.00014999,2]
[391633614,1760712638958,-500.0,0.00014999,2]
[391633615,1760712638968,-500.0,0.00014999,2]
[391633616,1760712638977,-500.0,0.00014999,2]
[391633617,1760712638987,-650.0,0.00014999,2]
[391633618,1760712639000,-500.0,0.00014999,2]
[391633619,1760712639009,-500.0,0.00014999,2]
[391633620,1760712639018,-500.0,0.00014999,2]
[391633621,1760712639027,-500.0,0.00014999,2]
[391633622,1760712639036,-762942.68756165,0.00015,2]
[391633623,1760712639046,-3759.9597948,0.00015,2]
[391633624,1760712639055,-3389.7314547,0.00015,2]
[391633625,1760712639067,-143648.3041832,0.00015,2]
[391633626,1760712639076,-19489.8102182,0.00015,2]
[391633627,1760712639085,-151.0,0.00015,2]
[391633628,1760712639094,-151.0,0.00015,2]
[391633629,1760712639103,-1653.2044196,0.00015,2]
[391633630,1760712639112,-48614.8535116,0.00015,2]
[391633631,1760712639123,-266.46833863,0.00015,2]
[391633632,1760712639132,-1018.29,0.00015082,2]
[391633633,1760712639142,-678.14,0.00015095,2]
[391633634,1760712639152,-300.0,0.00015191,2]
[391633635,1760712639161,-420.0,0.00015191,2]
[391633636,1760712639170,-420.0,0.00015191,2]
[391633637,1760712639180,-1680.0,0.00015249,2]
[391633638,1760712639190,-255.0,0.00015291,2]
[391633639,1760712639199,-161.0,0.000155,2]
[391633640,1760712639208,-160.83,0.000155,2]
[391633641,1760712639218,-3735.39126522,0.00015598,2]
[391633642,1760712639227,-24976.59656432,0.0001567,2]
[391633643,1760712639236,-500.0,0.00015671,2]
[391633644,1760712639245,-170.46,0.00015709,2]
[391633645,1760712639254,-200.0,0.00015822,2]
[391633646,1760712639263,-200.0,0.00015822,2]
[391633647,1760712639272,-556.02175,0.0001585,2]
[391633648,1760712639282,-200.0,0.0001598,2]
[391633649,1760712639291,-200.0,0.0001598,2]
[391633650,1760712639300,-4456.45756713,0.00016125,2]
[391633651,1760712639309,-200.0,0.0001614,2]
[391633652,1760712639322,-200.0,0.00016301,2]
[391633653,1760712639331,-1000.0,0.00016388,2]
[391633654,1760712639341,-462.19,0.00016438,30]
[391633655,1760712639350,-200.0,0.00016464,2]
[391633656,1760712639359,-300.0,0.00016496,2]
[391633657,1760712639370,-300.0,0.00016645,2]
[391633658,1760712639379,-587.0,0.00016645,2]
[391633659,1760712639390,-500.0,0.00016767,2]
[391633660,1760712639400,-678.14,0.00016773,2]
[391633661,1760712639410,-2351.0,0.00016774,2]
[391633662,1760712639419,-556.02175,0.0001685,2]
[391633663,1760712639429,-3735.39126522,0.00016855,2]
[391633664,1760712639439,-10847.4400496,0.00016903,2]
[391633665,1760712639448,-4500.0,0.00017,7]
[391633666,1760712639457,-305.36073993,0.00017184,2]
[391633667,1760712639466,-166.84519916,0.00017199,2]
[391633668,1760712639475,-4348.7644752,0.00017224,2]
[391633669,1760712639485,-2420.3910354,0.00017327,2]
[391633670,1760712639494,-4456.45756713,0.0001735,2]
[391633671,1760712639503,-170.46,0.00017454,2]
[391633672,1760712639513,-32052.2691174,0.00017666,2]
[391633673,1760712639522,-970.3405138,0.0001772,2]
[391633674,1760712639531,-556.02175,0.0001785,2]
[391633675,1760712639540,-838.9604311,0.00017921,2]
[391633676,1760712639549,-3735.39126522,0.00018112,2]
[391633677,1760712639558,-1000.0,0.00018209,2]
[391633678,1760712639574,-733.0,0.00018238,2]
[391633679,1760712639584,-7151.8279412,0.0001826,2]
[391633680,1760712639593,-168.7647916,0.00018307,2]
[391633681,1760712639603,-191.0,0.00018438,2]
[391633682,1760712639615,-678.14,0.0001845,2]
[391633683,1760712639624,-187.1973753,0.00018573,2]
[391633684,1760712639634,-4456.45756713,0.00018576,2]
[391633685,1760712639643,-169.62,0.00018601,2]
[391633686,1760712639651,-151.31,0.000188,2]
[391633687,1760712639662,-556.02175,0.0001885,2]
[391633688,1760712639673,-202.65613155,0.00018898,2]
[391633689,1760712639683,-180.0,0.00018904,2]
[391633690,1760712639696,-180.0,0.00018904,2]
[391633691,1760712639705,-180.0,0.00018904,2]
[391633692,1760712639715,-180.0,0.00018904,2]
[391633693,1760712639724,-180.0,0.00018904,2]
[391633694,1760712639733,-180.0,0.00018904,2]
[391633695,1760712639742,-180.0,0.00018904,2]
[391633696,1760712639751,-180.0,0.00018904,2]
[391633697,1760712639760,-180.0,0.00018904,2]
[391633698,1760712639768,-180.0,0.00018904,2]
[391633699,1760712639778,-180.0,0.00018904,2]
[391633700,1760712639787,-180.0,0.00018904,2]
[391633701,1760712639796,-180.0,0.00018904,2]
[391633702,1760712639805,-180.0,0.00018904,2]
[391633703,1760712639817,-153.0,0.00018904,2]
[391633704,1760712639826,-153.0,0.00018904,2]
[391633705,1760712639834,-153.0,0.00018904,2]
[391633706,1760712639843,-153.0,0.00018904,2]
[391633707,1760712639852,-153.0,0.00018904,2]
[391633708,1760712639861,-161.0,0.00018904,2]
[391633709,1760712639869,-161.0,0.00018904,2]
[391633710,1760712639878,-161.0,0.00018904,2]
[391633711,1760712639887,-161.0,0.00018904,2]
[391633712,1760712639896,-161.0,0.00018904,2]
[391633714,1760712639906,-161.0,0.00018904,2]
[391633716,1760712639914,-161.0,0.00018904,2]
[391633718,1760712639923,-161.0,0.00018904,2]
[391633720,1760712639932,-161.0,0.00018904,2]
[391633721,1760712639940,-161.0,0.00018904,2]
[391633723,1760712639950,-161.0,0.00018904,2]
[391633725,1760712639959,-161.0,0.00018904,2]
[391633727,1760712639968,-161.0,0.00018904,2]
[391633729,1760712639977,-161.0,0.00018904,2]
[391633731,1760712639986,-153.0,0.00018904,2]
[391633732,1760712639995,-153.0,0.00018904,2]
[391633733,1760712640004,-153.0,0.00018904,2]
[391633734,1760712640013,-153.0,0.00018904,2]
[391633735,1760712640022,-153.0,0.00018904,2]
[391633736,1760712640031,-73159.39708501,0.00019,2]
[391633737,1760712640040,-200.0,0.00019178,2]
[391633738,1760712640052,-170.46,0.00019199,2]
[391633739,1760712640061,-250.0,0.00019205,2]
[391633740,1760712640073,-431.09,0.00019216,2]
[391633742,1760712640083,-150.0,0.00019284,2]
[391633744,1760712640092,-31552.84,0.00019285,2]
[391633746,1760712640101,-3735.39126522,0.00019369,2]
[391633748,1760712640110,-305.36073993,0.00019469,2]
[391633750,1760712640120,-166.84519916,0.00019497,2]
[391633752,1760712640129,-2000.0,0.000197,2]
[391633754,1760712640138,-400.0,0.00019726,2]
[391633756,1760712640147,-4456.45756713,0.00019801,2]
[391633758,1760712640155,-556.02175,0.0001985,2]
[391633759,1760712640164,-8218.48440206,0.0002,2]
[391633760,1760712640174,-15805.65623738,0.0002,14]
[391633761,1760712640183,-1000.0,0.0002003,2]
[391633762,1760712640191,-678.14,0.00020127,2]
[391633763,1760712640201,-396.44,0.00020187,2]
[391633764,1760712640210,-600.0,0.00020274,2]
[391633765,1760712640219,-3735.39126522,0.00020625,2]
[391633766,1760712640228,-18819.52601407,0.000207,2]
[391633767,1760712640237,-442.0,0.000208,2]
[391633768,1760712640246,-800.0,0.00020822,2]
[391633769,1760712640255,-31222.37119782,0.0002085,2]
[391633770,1760712640265,-39946.83256313,0.000209,30]
[391633771,1760712640274,-170.46,0.00020945,2]
[391633772,1760712640285,-749.0,0.00020972,2]
[391633773,1760712640296,-2198.36,0.00020972,2]
[391633774,1760712640305,-1267.0,0.00020972,2]
[391633775,1760712640315,-3408.0,0.00020972,2]
[391633776,1760712640325,-571.0,0.00020972,2]
[391633777,1760712640334,-605.0,0.00020972,2]
[391633778,1760712640343,-1310.0,0.00020972,2]
[391633779,1760712640352,-1589.0,0.00020972,2]
[391633780,1760712640361,-816.0,0.00020972,2]
[391633781,1760712640370,-1583.0,0.00020972,2]
[391633782,1760712640379,-2319.741,0.00020972,2]
[391633783,1760712640388,-784.211,0.00020972,2]
[391633784,1760712640398,-4456.45756713,0.00021026,2]
[391633785,1760712640407,-1000.0,0.0002137,2]
[391633786,1760712640416,-462.19,0.0002142,30]
[391633787,1760712640425,-8654.99690734,0.000215,2]
[391633788,1760712640435,-150.29,0.00021622,2]
[391633789,1760712640444,-305.36073993,0.00021753,2]
[391633790,1760712640453,-166.84519916,0.00021796,2]
[391633791,1760712640462,-1000.0,0.00021851,2]
[391633792,1760712640471,-3735.39126522,0.00021882,2]
[391633793,1760712640480,-5000.0,0.00021918,2]
[391633794,1760712640489,-200.0,0.00021918,2]
[391633795,1760712640498,-5249.91846524,0.00022,4]
[391633796,1760712640507,-166.66,0.00022089,30]
[391633797,1760712640516,-4456.45756713,0.00022251,2]
[391633799,1760712640525,-166.66,0.00022554,30]
[391633801,1760712640534,-267.46074303,0.00022644,2]
[391633802,1760712640544,-199.67701257,0.00022644,2]
[391633804,1760712640553,-1425.68762769,0.00022644,2]
[391633806,1760712640562,-322.6107,0.00022644,2]
[391633808,1760712640572,-1000.0,0.00022644,2]
[391633810,1760712640581,-1000.0,0.00022644,2]
[391633812,1760712640591,-1000.0,0.00022644,2]
[391633814,1760712640599,-1000.0,0.00022644,2]
[391633816,1760712640611,-644.46860119,0.00022644,2]
[391633818,1760712640619,-695.39793187,0.00022644,2]
[391633820,1760712640628,-202.65613155,0.00022895,2]
[391633823,1760712640637,-163.13552459,0.00022927,2]
[391633825,1760712640645,-166.66,0.00023019,30]
[391633826,1760712640656,-3735.39126522,0.00023139,2]
[391633827,1760712640665,-150.0,0.00023251,2]
[391633828,1760712640674,-6717.92,0.00023251,2]
[391633829,1760712640684,-630.91739796,0.00023267,2]
[391633830,1760712640693,-1956.0,0.000234,2]
[391633831,1760712640703,-4456.45756713,0.00023477,2]
[391633832,1760712640712,-166.66,0.00023484,30]
[391633833,1760712640720,-150.0,0.00023835,2]
[391633834,1760712640730,-195.98,0.00023836,2]
[391633835,1760712640739,-2618.0,0.00023873,2]
[391633836,1760712640748,-166.66,0.00023949,30]
[391633837,1760712640758,-2050.0,0.00023972,2]
[391633838,1760712640767,-1267.0,0.00023972,2]
[391633839,1760712640775,-3408.0,0.00023972,2]
[391633840,1760712640784,-571.0,0.00023972,2]
[391633841,1760712640793,-604.0,0.00023972,2]
[391633842,1760712640802,-263.342,0.00023972,2]
[391633843,1760712640811,-1589.0,0.00023972,2]
[391633844,1760712640822,-816.0,0.00023972,2]
[391633845,1760712640831,-461.97165921,0.00024,2]
[391633846,1760712640840,-277.35679052,0.00024013,2]
[391633847,1760712640851,-334.5472959,0.00024013,2]
[391633848,1760712640860,-305.36073993,0.00024037,2]
[391633849,1760712640869,-166.84519916,0.00024094,2]
[391633850,1760712640878,-5608.16,0.00024174,2]
[391633851,1760712640887,-844.58,0.00024174,2]
[391633852,1760712640896,-150.29,0.00024244,2]
[391633853,1760712640905,-3735.39126522,0.00024396,2]
[391633854,1760712640918,-166.66,0.00024414,30]
[391633855,1760712640931,-150.0,0.000245,5]
[391633856,1760712640940,-55555.0,0.00024557,3]
[391633857,1760712640949,-397.1137363,0.00024557,2]
[391633858,1760712640958,-11141.0,0.0002463,2]
[391633859,1760712640967,-151.0,0.00024654,7]
[391633860,1760712640975,-80888.99602771,0.00024657,2]
[391633861,1760712641177,-500.0,0.00024657,2]
[391633862,1760712641186,-504.10369482,0.00024657,2]
[391633863,1760712641195,-232.36311727,0.00024657,2]
[391633864,1760712641203,-500.0,0.00024657,2]
[391633865,1760712641213,-500.0,0.00024657,2]
[391633866,1760712641222,-500.0,0.00024657,2]
[391633867,1760712641231,-500.0,0.00024657,2]
[391633868,1760712641240,-500.0,0.00024657,2]
[391633869,1760712641249,-500.0,0.00024657,2]
[391633870,1760712641258,-500.0,0.00024657,2]
[391633871,1760712641267,-371.40775721,0.00024657,2]
[391633872,1760712641276,-500.0,0.00024657,2]
[391633873,1760712641285,-500.0,0.00024657,2]
[391633874,1760712641294,-500.0,0.00024657,2]
[391633875,1760712641302,-480.91642837,0.00024657,2]
[391633876,1760712641311,-522.4,0.00024657,2]
[391633877,1760712641323,-500.0,0.00024657,2]
[391633878,1760712641339,-500.0,0.00024657,2]
[391633879,1760712641348,-869.21,0.00024657,2]
[391633880,1760712641357,-1021.91,0.00024657,2]
[391633881,1760712641366,-500.0,0.00024657,2]
[391633882,1760712641375,-500.0,0.00024657,2]
[391633883,1760712641384,-500.0,0.00024657,2]
[391633884,1760712641393,-600.97698349,0.00024657,2]
[391633885,1760712641402,-500.0,0.00024657,2]
[391633886,1760712641411,-500.66640271,0.00024657,2]
[391633887,1760712641419,-500.0,0.00024657,2]
[391633888,1760712641428,-500.0,0.00024657,2]
[391633889,1760712641437,-537.34,0.00024657,2]
[391633890,1760712641446,-500.0,0.00024657,2]
[391633891,1760712641454,-500.0,0.00024657,2]
[391633892,1760712641463,-500.72630461,0.00024657,2]
[391633893,1760712641472,-1474.93,0.00024657,2]
[391633894,1760712641481,-666.77,0.00024657,2]
[391633895,1760712641490,-500.0,0.00024657,2]
[391633896,1760712641499,-500.0,0.00024657,2]
[391633897,1760712641508,-500.0,0.00024657,2]
[391633898,1760712641516,-500.0,0.00024657,2]
[391633899,1760712641525,-634.27253826,0.00024657,2]
[391633900,1760712641534,-690.946079,0.00024657,2]
[391633901,1760712641543,-500.0,0.00024657,2]
[391633902,1760712641552,-500.0,0.00024657,2]
[391633903,1760712641561,-500.0,0.00024657,2]
[391633904,1760712641572,-500.0,0.00024657,2]
[391633905,1760712641581,-500.0,0.00024657,2]
[391633906,1760712641590,-530.05594012,0.00024657,2]
[391633907,1760712641600,-934.67,0.00024657,2]
[391633908,1760712641612,-500.0,0.00024657,2]
[391633909,1760712641621,-1074.19,0.00024657,2]
[391633910,1760712641630,-502.62557005,0.00024657,2]
[391633911,1760712641639,-500.0,0.00024657,2]
[391633912,1760712641648,-310.84313804,0.00024657,2]
[391633913,1760712641658,-299.43956567,0.00024657,2]
[391633914,1760712641667,-500.0,0.00024657,2]
[391633915,1760712641676,-500.0,0.00024657,2]
[391633916,1760712641685,-500.0,0.00024657,2]
[391633917,1760712641694,-500.0,0.00024657,2]
[391633918,1760712641703,-500.0,0.00024657,2]
[391633919,1760712641712,-585.43336588,0.00024657,2]
[391633920,1760712641720,-500.0,0.00024657,2]
[391633921,1760712641730,-500.0,0.00024657,2]
[391633922,1760712641739,-500.35724748,0.00024657,2]
[391633923,1760712641748,-500.0,0.00024657,2]
[391633924,1760712641757,-500.0,0.00024657,2]
[391633925,1760712641766,-500.0,0.00024657,2]
[391633926,1760712641774,-567.91995718,0.00024657,2]
[391633927,1760712641784,-274.11937708,0.00024657,2]
[391633928,1760712641792,-500.0,0.00024657,2]
[391633929,1760712641802,-287.46799248,0.00024657,2]
[391633930,1760712641811,-284.2680019,0.00024657,2]
[391633931,1760712641821,-2000.0,0.00024657,7]
[391633932,1760712641831,-500.43018167,0.00024657,2]
[391633933,1760712641839,-150.01100905,0.00024657,2]
[391633934,1760712641849,-500.0,0.00024657,2]
[391633935,1760712641858,-500.0,0.00024657,2]
[391633936,1760712641867,-500.0,0.00024657,2]
[391633937,1760712641876,-500.0,0.00024657,2]
[391633938,1760712641885,-500.0,0.00024657,2]
[391633939,1760712641894,-500.0,0.00024657,2]
[391633940,1760712641902,-500.0,0.00024657,2]
[391633941,1760712641911,-500.0,0.00024657,2]
[391633942,1760712641920,-500.0,0.00024657,2]
[391633943,1760712641929,-500.0,0.00024657,2]
[391633944,1760712641939,-500.0,0.00024657,2]
[391633945,1760712641947,-500.0,0.00024657,2]
[391633946,1760712641956,-505.96262885,0.00024657,2]
[391633947,1760712641965,-500.0,0.00024657,2]
[391633948,1760712641974,-500.0,0.00024657,2]
[391633949,1760712641983,-310.23679442,0.00024657,2]
[391633950,1760712641992,-500.0,0.00024657,2]
[391633951,1760712642001,-500.66676751,0.00024657,2]
[391633952,1760712642009,-500.0,0.00024657,2]
[391633953,1760712642018,-500.0,0.00024657,2]